bitfinex-derivatives/quotes_BTCF0:USTF0_20241210
["timestamp","ask_amount","ask_price","bid_price","bid_amount"]
[1733789829528,0.009,97375.0,97374.0,0.05132]
[1733789829722,0.009,97375.0,97374.0,0.05645614]
[1733789830324,8.571e-05,97377.0,97376.0,0.051319]
[1733789830525,8.571e-05,97377.0,97376.0,0.05645514]
[1733789831033,0.3608,97389.0,97388.0,0.051312]
[1733789831234,0.3608,97389.0,97388.0,0.05644814]
[1733789831433,0.46132001,97400.0,97390.0,0.051311]
[1733789831624,0.46132001,97400.0,97388.0,0.00513614]
[1733789831625,0.46132001,97400.0,97392.0,0.05131]
[1733789831931,0.46132001,97400.0,97392.0,0.05644614]
[1733789832833,0.46132001,97400.0,97392.0,1.55644614]
[1733789833333,0.46132001,97400.0,97392.0,1.55744614]
[1733789833334,0.0074,97393.0,97392.0,1.55744614]
[1733789833722,0.0074,97393.0,97392.0,1.55844614]
[1733789834034,0.016,97393.0,97392.0,1.55844614]
[1733789834624,0.016,97393.0,97392.0,0.00713614]
[1733789834827,0.06731,97393.0,97392.0,0.00713614]
[1733789835029,0.06731,97393.0,97392.0,0.002]
[1733789835430,0.06731,97393.0,97372.0,0.00154036]
[1733789835431,0.15233724,97383.0,97372.0,0.00154036]
[1733789835634,0.3608,97373.0,97372.0,0.00154036]
[1733789835823,0.3608,97373.0,97372.0,0.00667623]
[1733789836134,0.3608,97373.0,97372.0,0.00154036]
[1733789836431,0.41212,97373.0,97372.0,0.00154036]
[1733789837031,0.3668,97373.0,97372.0,0.00254036]
[1733789837338,0.3668,97373.0,97372.0,0.00575052]
[1733789837339,0.41812,97373.0,97372.0,0.00575052]
[1733789838031,0.41812,97373.0,97372.0,0.00254036]
[1733789838428,0.41812,97373.0,97372.0,0.00575066]
[1733789838630,0.42112,97373.0,97372.0,0.00575066]
[1733789839527,0.42112,97373.0,97362.0,1.5]
[1733789839528,0.051325,97363.0,97362.0,1.5]
[1733789839735,0.412125,97363.0,97362.0,1.5]
[1733789841132,0.414125,97363.0,97362.0,1.5]
[1733789841631,0.415125,97363.0,97362.0,1.5]
[1733789841836,0.051331,97352.0,97351.0,0.00010802]
[1733789842039,0.051337,97341.0,97340.0,0.00154092]
[1733789842333,0.051343,97330.0,97314.0,0.396511]
[1733789842536,0.3608,97324.0,97319.0,0.051349]
[1733789842731,0.3608,97324.0,97323.0,0.051347]
[1733789842932,0.3608,97324.0,97323.0,1.55656141]
[1733789843231,0.3608,97332.0,97331.0,0.051342]
[1733789843433,0.00011937,97333.0,97331.0,0.05648002]
[1733789843826,0.00011937,97333.0,97332.0,0.00513802]
[1733789844025,0.36091937,97333.0,97332.0,1.50513813]
[1733789844431,0.36091937,97333.0,97332.0,1.5]
[1733789845135,0.36091937,97333.0,97332.0,1.5051381]
[1733789845337,0.36091937,97333.0,97332.0,1.5]
[1733789845531,0.36191937,97333.0,97332.0,1.5]
[1733789846035,0.36291937,97333.0,97332.0,1.5]
[1733789846234,0.36191937,97333.0,97332.0,1.5]
[1733789846434,0.36291937,97333.0,97332.0,1.5]
[1733789846941,0.3763908,97333.0,97332.0,1.5]
[1733789847237,0.3763908,97333.0,97332.0,1.551342]
[1733789847635,0.3753908,97333.0,97332.0,1.55647972]
[1733789847840,0.3743908,97333.0,97332.0,1.55647972]
[1733789848136,0.3743908,97333.0,97332.0,1.56806164]
[1733789848939,0.3743908,97333.0,97332.0,1.57006164]
[1733789849143,0.0145908,97333.0,97332.0,1.57006164]
[1733789849641,0.0135908,97333.0,97332.0,1.55847972]
[1733789849843,0.0135908,97333.0,97332.0,1.56247972]
[1733789849844,0.0145908,97333.0,97332.0,1.56247972]
[1733789850037,0.0145908,97333.0,97332.0,1.557342]
[1733789850645,0.0145908,97333.0,97332.0,1.555342]
[1733789850937,0.0145908,97333.0,97332.0,1.559342]
[1733789851141,0.3753908,97333.0,97332.0,1.559342]
[1733789851438,0.0145908,97333.0,97332.0,1.555342]
[1733789851643,0.0145908,97333.0,97332.0,1.56055298]
[1733789851836,0.0145908,97333.0,97332.0,1.557342]
[1733789852033,0.0145908,97333.0,97332.0,1.56055294]
[1733789852234,0.0145908,97333.0,97332.0,1.56569017]
[1733789854041,0.0135908,97333.0,97332.0,1.56169017]
[1733789854242,0.0145908,97333.0,97332.0,1.56569017]
[1733789855051,0.0145908,97333.0,97332.0,1.56769017]
[1733789855444,0.3608,97353.0,97332.0,1.56769017]
[1733789855640,0.3608,97353.0,97352.0,0.051331]
[1733789856040,0.36132001,97365.0,97360.0,0.051327]
[1733789856443,0.3608,97365.0,97352.0,0.3608]
[1733789856639,0.3608,97365.0,97364.0,1.5]
[1733789857243,0.412124,97365.0,97364.0,1.5]
[1733789857451,0.051327,97361.0,97346.0,0.051334]
[1733789857637,0.3608,97350.0,97347.0,0.00321054]
[1733789857838,0.3608,97350.0,97348.0,1.50321054]
[1733789858038,0.3608,97350.0,97349.0,0.00321054]
[1733789858241,0.3608,97350.0,97348.0,1.50056]
[1733789858435,0.3608,97350.0,97348.0,1.551333]
[1733789858642,0.3608,97350.0,97349.0,0.00321064]
[1733789859244,0.36532001,97365.0,97349.0,0.00321064]
[1733789859245,0.36532001,97365.0,97349.0,0.36401064]
[1733789859544,0.3638,97365.0,97363.0,0.051325]
[1733789859748,0.3638,97365.0,97364.0,1.5]
[1733789859940,0.07689426,97368.0,97364.0,1.50321015]
[1733789859941,9.426e-05,97368.0,97364.0,1.50321015]
[1733789860142,9.426e-05,97368.0,97367.0,0.051323]
[1733789860338,0.36089426,97368.0,97367.0,0.051323]
[1733789861844,0.36489426,97368.0,97367.0,0.051323]
[1733789862654,0.00409426,97368.0,97367.0,0.42046867]
[1733789862957,0.00409426,97368.0,97367.0,1.92046867]
[1733789863152,0.01209426,97368.0,97367.0,1.92046867]
[1733789864249,0.00309426,97368.0,97367.0,1.92046867]
[1733789864455,0.00909426,97368.0,97367.0,1.92046867]
[1733789864953,0.00909426,97368.0,97367.0,1.92046785]
[1733789865151,0.00909426,97368.0,97367.0,1.55966785]
[1733789865344,0.00909426,97368.0,97367.0,1.92046785]
[1733789867756,0.12270947,97394.0,97367.0,2.56264485]
[1733789868053,0.3608,97395.0,97394.0,0.051309]
[1733789868054,0.36140001,97395.0,97394.0,0.051309]
[1733789868249,0.3608,97395.0,97394.0,0.051309]
[1733789868446,0.12270947,97399.0,97394.0,1.551309]
[1733789868756,0.12270947,97399.0,97395.0,8.184e-05]
[1733789869246,0.10013338,97400.0,97395.0,8.184e-05]
[1733789869950,0.10013338,97400.0,97399.0,0.051307]
[1733789870357,0.10913338,97400.0,97399.0,0.051307]
[1733789870653,0.10913338,97400.0,97399.0,0.05451587]
[1733789870851,0.11713338,97400.0,97399.0,0.05451587]
[1733789871043,0.11713338,97400.0,97399.0,0.051307]
[1733789871446,0.11713338,97400.0,97399.0,1.552307]
[1733789872251,0.11813338,97400.0,97399.0,1.553307]
[1733789875464,0.11813338,97400.0,97399.0,1.55651571]
[1733789876758,0.10913338,97400.0,97399.0,1.55651571]
[1733789876962,0.11613338,97400.0,97399.0,1.55651571]
[1733789877257,3.8e-07,97400.0,97399.0,1.85651571]
[1733789877456,0.02055318,97434.0,97416.0,0.051298]
[1733789878053,0.02055318,97434.0,97416.0,1.551298]
[1733789878360,0.01311481,97429.0,97416.0,1.551298]
[1733789878952,0.01157473,97429.0,97416.0,1.55450619]
[1733789879468,0.3608,97435.0,97416.0,1.55963911]
[1733789879654,0.3608,97435.0,97416.0,1.50320819]
[1733789879853,0.00648,97417.0,97416.0,1.50320819]
[1733789880161,0.00648,97417.0,97404.0,0.051303]
[1733789880162,0.37028,97417.0,97404.0,0.051303]
[1733789880360,0.086,97416.0,97405.0,0.00320852]
[1733789880556,0.086,97416.0,97406.0,1.60439608]
[1733789880761,0.086,97416.0,97411.0,0.0513]
[1733789881059,0.086,97416.0,97414.0,0.051299]
[1733789881561,0.087,97416.0,97415.0,0.00320845]
[1733789882453,0.001,97416.0,97415.0,0.00320839]
[1733789882657,0.001,97416.0,97415.0,1.50320839]
[1733789882862,0.004,97416.0,97415.0,1.50320839]
[1733789884056,0.003,97416.0,97415.0,1.50320839]
[1733789884351,0.003,97416.0,97415.0,1.51473116]
[1733789885956,0.003,97416.0,97415.0,1.51473107]
[1733789886163,0.17090415,97436.0,97415.0,1.51986435]
[1733789886352,0.17090415,97436.0,97435.0,0.051288]
[1733789887463,0.17090415,97436.0,97435.0,0.05449585]
[1733789887661,0.17790415,97436.0,97435.0,0.05549585]
[1733789887961,0.18490415,97436.0,97435.0,0.05649585]
[1733789888557,0.18490415,97436.0,97435.0,0.053288]
[1733789888755,0.01210415,97436.0,97435.0,0.05549582]
[1733789888965,0.01210415,97436.0,97435.0,0.06062836]
[1733789889768,0.01210415,97436.0,97435.0,1.56062836]
[1733789890462,0.01210415,97436.0,97435.0,1.57254304]
[1733789891464,0.37290415,97436.0,97435.0,1.50934036]
[1733789891662,0.37290415,97436.0,97435.0,1.51575574]
[1733789891858,0.37290415,97436.0,97435.0,1.50934036]
[1733789892059,0.36790415,97436.0,97435.0,1.50934036]
[1733789893367,0.36090415,97436.0,97435.0,1.50834036]
[1733789893565,0.36290415,97436.0,97435.0,1.50834036]
[1733789894565,0.36290415,97436.0,97435.0,1.51475611]
[1733789894865,0.36290415,97436.0,97435.0,1.51475622]
[1733789896155,0.00210415,97436.0,97435.0,1.51475622]
[1733789896361,0.36290415,97436.0,97435.0,1.51475622]
[1733789897263,0.00210415,97436.0,97435.0,1.51475622]
[1733789898768,0.00210415,97436.0,97435.0,1.5]
[1733789898769,0.2070794,97436.0,97435.0,1.5]
[1733789898965,0.10329426,97436.0,97435.0,1.50834169]
[1733789899165,0.10329461,97436.0,97435.0,1.50834169]
[1733789899365,0.05200761,97436.0,97435.0,1.50834169]
[1733789899572,0.01355198,97436.0,97435.0,1.50834169]
[1733789899759,0.00210415,97436.0,97435.0,1.50834169]
[1733789899961,0.00210415,97436.0,97435.0,1.51475828]
[1733789902366,0.00210415,97436.0,97435.0,1.87555828]
[1733789903971,0.00210415,97436.0,97435.0,1.8608]
[1733789904174,0.00210415,97436.0,97435.0,1.87555353]
[1733789904665,0.05339115,97436.0,97435.0,1.51475353]
[1733789904867,0.05339115,97436.0,97435.0,0.01854544]
[1733789905062,0.35200158,97436.0,97415.0,0.00153954]
[1733789905268,0.3608,97418.0,97415.0,0.00153954]
[1733789905463,0.3608,97418.0,97417.0,1.8935]
[1733789905670,0.3608,97418.0,97417.0,1.5]
[1733789906866,0.4836203,97418.0,97417.0,1.502]
[1733789907075,0.3608,97418.0,97417.0,1.502]
[1733789907575,0.3608,97418.0,97417.0,1.505]
[1733789908274,0.0814,97419.0,97417.0,1.505]
[1733789908474,0.12281835,97418.0,97417.0,1.505]
[1733789908678,0.20421835,97419.0,97417.0,1.505]
[1733789909068,0.20421835,97419.0,97418.0,0.051297]
[1733789909271,0.0814,97419.0,97418.0,0.051297]
[1733789909479,0.36132001,97425.0,97422.0,0.051294]
[1733789909480,0.00052001,97425.0,97422.0,0.051294]
[1733789909671,0.3608,97448.0,97423.0,0.051293]
[1733789909672,0.48360715,97424.0,97423.0,0.051293]
[1733789909869,0.12280646,97427.0,97423.0,0.3608]
[1733789910068,0.12280646,97430.0,97428.0,0.051291]
[1733789910371,0.12280646,97430.0,97429.0,1.5]
[1733789910567,0.12280482,97431.0,97429.0,1.551291]
[1733789910769,0.36146416,97436.0,97435.0,0.051288]
[1733789910770,0.36090415,97436.0,97435.0,0.051288]
[1733789911382,0.00010415,97436.0,97435.0,1.551288]
[1733789911571,0.00010415,97436.0,97435.0,1.912088]
[1733789913581,0.00110415,97436.0,97435.0,1.912088]
[1733789915176,0.00110415,97436.0,97435.0,1.91721975]
[1733789915775,0.00110415,97436.0,97435.0,2.11990006]
[1733789916076,0.09208627,97445.0,97444.0,0.051283]
[1733789916268,0.12280482,97449.0,97444.0,0.051283]
[1733789916269,0.12280482,97449.0,97444.0,0.38530864]
[1733789916473,0.09208427,97449.0,97448.0,0.00076939]
[1733789916684,0.09208427,97452.0,97448.0,1.523739]
[1733789916879,0.09206143,97455.0,97449.0,0.02461957]
[1733789917189,0.15343376,97473.0,97459.0,0.051275]
[1733789917479,0.3608,97491.0,97477.0,0.051265]
[1733789917480,0.3608,97483.0,97477.0,0.051265]
[1733789917668,0.3608,97483.0,97479.0,0.051264]
[1733789917868,0.3608,97483.0,97480.0,0.05960264]
[1733789918080,0.3608,97483.0,97470.0,0.10118756]
[1733789918081,0.3608,97483.0,97481.0,0.05960164]
[1733789918272,0.36089565,97483.0,97482.0,0.00833864]
[1733789918874,0.36089565,97483.0,97482.0,1.50833864]
[1733789919276,0.36089565,97483.0,97482.0,1.50320689]
[1733789919479,0.36089565,97483.0,97482.0,1.51471164]
[1733789919780,0.01209565,97483.0,97482.0,1.52184157]
[1733789920077,0.01209565,97483.0,97482.0,1.53398694]
[1733789921481,0.01209565,97483.0,97482.0,1.5339785]
[1733789921776,0.01209565,97483.0,97482.0,1.52184157]
[1733789921978,0.01209565,97483.0,97482.0,1.52825308]
[1733789922478,0.1684,97499.0,97498.0,0.051255]
[1733789922675,0.1684,97499.0,97498.0,0.05446189]
[1733789922676,0.0861,97499.0,97498.0,0.05446189]
[1733789923176,0.0861,97499.0,97498.0,1.55446189]
[1733789923872,0.005,97499.0,97498.0,1.55546189]
[1733789924180,0.005,97499.0,97498.0,1.57271463]
[1733789924385,0.005,97499.0,97498.0,1.57270766]
[1733789924587,0.005,97499.0,97498.0,1.57911796]
[1733789925181,0.005,97499.0,97498.0,1.52786296]
[1733789925382,0.3688,97499.0,97498.0,0.01033564]
[1733789925680,0.3688,97499.0,97498.0,0.00520689]
[1733789925681,0.1732,97499.0,97498.0,0.00520689]
[1733789926184,0.1732,97499.0,97498.0,0.01660141]
[1733789926370,0.1732,97499.0,97498.0,0.00420689]
[1733789926574,0.1732,97499.0,97498.0,0.00933566]
[1733789926770,0.1732,97499.0,97498.0,0.00420689]
[1733789926983,0.1732,97499.0,97498.0,0.0093356]
[1733789927170,0.0874,97499.0,97498.0,0.0093356]
[1733789927683,0.0874,97499.0,97498.0,0.02057809]
[1733789927886,0.0874,97499.0,97498.0,0.01544938]
[1733789928673,0.0874,97499.0,97498.0,0.001]
[1733789929376,0.0874,97499.0,97495.0,1.50056]
[1733789929574,0.0874,97499.0,97495.0,1.5]
[1733789929879,0.0874,97499.0,97481.0,0.051267]
[1733789930078,0.3608,97485.0,97481.0,0.051267]
[1733789930382,0.173,97484.0,97483.0,0.051266]
[1733789930985,0.5338,97484.0,97483.0,1.551266]
[1733789931677,0.5338,97484.0,97483.0,1.5]
[1733789933082,0.5368,97484.0,97483.0,1.5]
[1733789933988,0.5368,97484.0,97457.0,0.05128]
[1733789933989,0.8368,97484.0,97457.0,0.05128]
[1733789934180,0.3608,97459.0,97457.0,0.05128]
[1733789934486,0.2505,97458.0,97457.0,0.05128]
[1733789934874,0.2505,97458.0,97439.0,0.00153884]
[1733789935081,0.2505,97458.0,97440.0,0.00833829]
[1733789935082,0.3608,97441.0,97440.0,0.00833829]
[1733789935286,0.3608,97441.0,97440.0,0.00320703]
[1733789935590,0.36132001,97449.0,97448.0,0.051285]
[1733789935888,0.3608,97449.0,97448.0,0.0546187]
[1733789936182,0.3608,97449.0,97448.0,1.5546187]
[1733789937488,0.3608,97449.0,97448.0,1.5576187]
[1733789938086,0.3608,97457.0,97448.0,1.51744367]
[1733789938390,0.3608,97457.0,97449.0,0.00320718]
[1733789938593,0.3608,97457.0,97450.0,0.00320718]
[1733789938800,0.3608,97457.0,97456.0,0.05128]
[1733789938984,0.0855,97458.0,97456.0,0.05128]
[1733789939290,0.0855,97458.0,97457.0,0.00320718]
[1733789939588,0.3608,97466.0,97461.0,0.051278]
[1733789940490,0.3608,97466.0,97457.0,1.50380718]
[1733789940683,0.3608,97466.0,97457.0,1.50320718]
[1733789940876,0.0873,97476.0,97475.0,0.05127]
[1733789941082,0.00052001,97478.0,97477.0,0.051269]
[1733789941389,0.0203757,97505.0,97499.0,0.051258]
[1733789942580,0.106,97500.0,97499.0,0.052258]
[1733789942979,0.11,97500.0,97499.0,1.552258]
[1733789943178,0.11,97500.0,97499.0,1.501]
[1733789944487,0.11,97500.0,97499.0,1.552258]
[1733789945084,0.11,97500.0,97499.0,1.55546387]
[1733789945384,0.11,97500.0,97499.0,1.55546388]
[1733789945780,0.11,97500.0,97499.0,1.56059278]
[1733789945987,0.11,97500.0,97499.0,1.52147039]
[1733789945988,0.104,97500.0,97499.0,1.52147039]
[1733789946192,0.109,97500.0,97499.0,1.52147039]
[1733789946784,0.109,97500.0,97499.0,1.56059278]
[1733789946983,0.109,97500.0,97499.0,1.56059294]
[1733789947183,0.106,97500.0,97499.0,1.55959294]
[1733789947391,0.106,97500.0,97499.0,1.50833494]
[1733789947591,0.106,97500.0,97499.0,1.52048563]
[1733789947792,0.102,97500.0,97499.0,1.50833494]
[1733789948086,0.103,97500.0,97499.0,1.50833494]
[1733789950594,0.103,97500.0,97499.0,1.52050457]
[1733789952294,0.103,97500.0,97499.0,1.57176257]
[1733789952494,0.103,97500.0,97499.0,1.55959294]
[1733789955695,0.103,97500.0,97499.0,1.5205112]
[1733789955896,0.154257,97500.0,97499.0,1.50833494]
[1733789956203,0.051266,97484.0,97478.0,0.00076384]
[1733789956387,0.051266,97484.0,97457.0,0.30671091]
[1733789956388,0.3608,97480.0,97471.0,0.00076384]
[1733789956592,0.3608,97480.0,97479.0,1.5]
[1733789956795,0.051271,97474.0,97463.0,0.00076384]
[1733789957107,0.3608,97480.0,97464.0,0.01861341]
[1733789957290,0.1679,97483.0,97479.0,0.057268]
[1733789957488,0.1679,97483.0,97479.0,0.061268]
[1733789957794,0.1679,97483.0,97481.0,0.051267]
[1733789957990,0.1679,97483.0,97480.0,1.50056]
[1733789958190,0.1679,97483.0,97480.0,1.5]
[1733789959187,0.5287,97483.0,97480.0,1.5]
[1733789959394,0.5287,97483.0,97480.0,1.502]
[1733789959796,0.5287,97483.0,97480.0,1.504]
[1733789960695,0.5287,97483.0,97480.0,1.555267]
[1733789961600,0.5287,97483.0,97480.0,1.553267]
[1733789961801,0.5287,97483.0,97481.0,0.051266]
[1733789962108,0.3608,97483.0,97481.0,0.051266]
[1733789962296,0.3608,97483.0,97482.0,0.01220436]
[1733789962599,0.3608,97483.0,97480.0,1.50456]
[1733789962600,0.3608,97483.0,97480.0,1.5026]
[1733789962795,0.3608,97483.0,97481.0,0.002]
[1733789963403,0.3608,97483.0,97482.0,0.001]
[1733789963596,0.3608,97483.0,97482.0,0.002]
[1733789964496,0.02045141,97489.0,97482.0,0.002]
[1733789964697,0.02045141,97489.0,97486.0,0.051264]
[1733789964901,0.02045141,97489.0,97482.0,0.001]
[1733789965201,0.1,97500.0,97488.0,1.5]
[1733789965202,0.02061556,97498.0,97488.0,1.5]
[1733789965598,0.02061556,97498.0,97496.0,0.051259]
[1733789966103,0.02061556,97498.0,97488.0,1.60104733]
[1733789966301,0.02061556,97498.0,97488.0,1.5]
[1733789966498,0.3608,97495.0,97488.0,1.5]
[1733789966693,0.3608,97495.0,97489.0,0.0051299]
[1733789966898,0.3608,97495.0,97488.0,1.5]
[1733789966899,0.3608,97495.0,97492.0,0.051261]
[1733789967208,0.02061556,97498.0,97494.0,0.05126]
[1733789967506,0.02061556,97498.0,97488.0,1.50056]
[1733789967507,0.02061556,97498.0,97496.0,0.051259]
[1733789968102,0.02261556,97498.0,97496.0,0.051259]
[1733789968307,0.02261556,97498.0,97497.0,0.00320606]
[1733789968605,0.02761556,97498.0,97497.0,0.00320606]
[1733789968908,0.02761556,97498.0,97497.0,1.50320606]
[1733789969095,0.02261556,97498.0,97497.0,1.50320606]
[1733789969301,0.02761556,97498.0,97497.0,1.50320606]
[1733789969610,0.02561556,97498.0,97497.0,1.50320606]
[1733789969902,0.02061556,97498.0,97497.0,1.50920606]
[1733789970105,0.1,97500.0,97497.0,1.50920606]
[1733789970300,0.1,97500.0,97498.0,0.05959459]
[1733789970603,0.1,97500.0,97499.0,0.00833559]
[1733789971009,0.1,97500.0,97499.0,0.0083356]
[1733789971310,0.1,97500.0,97499.0,1.52058011]
[1733789971609,0.1,97500.0,97499.0,0.02058011]
[1733789971907,0.1,97500.0,97499.0,0.0062057]
[1733789972107,0.1,97500.0,97499.0,1.5082057]
[1733789973403,0.25343485,97500.0,97499.0,1.52558032]
[1733789973608,0.1,97500.0,97499.0,1.52558032]
[1733789973910,0.1,97500.0,97499.0,1.5133348]
[1733789974098,0.1,97500.0,97499.0,1.5082057]
[1733789974296,0.14986141,97500.0,97499.0,1.5052057]
[1733789974712,0.14986141,97500.0,97499.0,1.5]
[1733789975010,0.44986141,97500.0,97499.0,1.503]
[1733789975212,0.051269,97479.0,97473.0,0.051272]
[1733789975530,0.412072,97474.0,97466.0,0.051275]
[1733789975804,0.412072,97474.0,97467.0,0.02055386]
[1733789976003,0.15346349,97472.0,97468.0,0.02055386]
[1733789976197,0.15346349,97472.0,97471.0,1.5]
[1733789976404,0.15346349,97473.0,97471.0,1.50833625]
[1733789976604,0.41259201,97474.0,97472.0,0.02055386]
[1733789976808,0.412072,97474.0,97473.0,0.02055602]
[1733789977003,0.46194957,97474.0,97473.0,0.02055602]
[1733789977506,0.46194957,97474.0,97473.0,0.02055579]
[1733789977711,0.46194957,97474.0,97473.0,0.01542597]
[1733789978102,0.46194957,97474.0,97473.0,0.01221969]
[1733789978301,0.46194957,97474.0,97473.0,0.006]
[1733789978610,0.46194957,97474.0,97473.0,0.00920663]
[1733789978811,0.46194957,97474.0,97473.0,0.00820663]
[1733789979107,0.4619494,97474.0,97473.0,0.00820663]
[1733789979315,0.412072,97474.0,97473.0,0.00820661]
[1733789979612,0.412072,97474.0,97448.0,0.00012682]
[1733789979613,0.83409745,97474.0,97448.0,0.00012682]
[1733789979806,0.3608,97453.0,97448.0,0.00012682]
[1733789980003,0.51414027,97453.0,97448.0,0.00012682]
[1733789980206,0.5304,97453.0,97452.0,0.00474635]
[1733789980605,0.5304,97453.0,97452.0,0.00320714]
[1733789981206,0.5304,97453.0,97448.0,0.00012682]
[1733789981421,0.5304,97453.0,97449.0,0.00320716]
[1733789981714,0.5304,97453.0,97448.0,0.00012682]
[1733789981715,0.12255082,97451.0,97448.0,0.00012682]
[1733789982211,0.12255082,97450.0,97448.0,0.00012682]
[1733789982405,0.12255082,97452.0,97448.0,0.00012682]
[1733789982712,0.65447083,97453.0,97449.0,0.011]
[1733789982910,0.65395082,97453.0,97449.0,0.011]
[1733789983300,0.001,97450.0,97448.0,0.01112682]
[1733789984908,0.53192001,97453.0,97449.0,0.007]
[1733789985110,0.5314,97453.0,97449.0,0.007]
[1733789985413,0.5304,97453.0,97452.0,1.5]
[1733789986120,0.3618,97453.0,97452.0,1.5]
[1733789986610,0.3608,97453.0,97452.0,1.508]
[1733789987502,0.412083,97453.0,97452.0,1.508]
[1733789987708,0.86553332,97453.0,97452.0,0.008]
[1733789987913,0.051285,97449.0,97448.0,0.00012682]
[1733789988110,0.051285,97449.0,97411.0,0.3935]
[1733789988111,0.051294,97433.0,97418.0,0.01089374]
[1733789988309,0.10104733,97440.0,97421.0,0.0513]
[1733789988310,0.3608,97424.0,97421.0,0.0513]
[1733789988614,0.3608,97435.0,97421.0,0.0513]
[1733789988804,0.3608,97435.0,97429.0,1.5]
[1733789990320,0.3608,97435.0,97429.0,1.504]
[1733789990703,0.3618,97435.0,97429.0,1.511]
[1733789990906,0.3618,97435.0,97434.0,0.051293]
[1733789991513,0.3618,97435.0,97434.0,1.551293]
[1733789992216,0.3608,97435.0,97434.0,1.555293]
[1733789993014,0.3608,97435.0,97434.0,1.557293]
[1733789994618,0.02113848,97454.0,97434.0,1.557293]
[1733789994833,0.00153965,97456.0,97451.0,0.051284]
[1733789995121,0.3608,97463.0,97452.0,0.0894]
[1733789995312,0.3608,97463.0,97452.0,0.09260694]
[1733789995513,0.3608,97463.0,97452.0,0.0894]
[1733789995715,0.02004018,97468.0,97452.0,1.5894]
[1733789996016,0.3608,97475.0,97454.0,0.051283]
[1733789996218,0.3608,97475.0,97452.0,1.59260691]
[1733789996219,0.3608,97475.0,97459.0,0.3608]
[1733789996422,0.3608,97475.0,97460.0,0.09100665]
[1733789996722,0.3608,97475.0,97473.0,0.051272]
[1733789997021,0.36092061,97475.0,97473.0,0.051272]
[1733789997324,0.00012061,97475.0,97473.0,0.051272]
[1733789998125,0.00312061,97475.0,97473.0,0.051272]
[1733789998312,0.00312061,97475.0,97474.0,0.00320616]
[1733789998630,0.3608,97496.0,97492.0,0.051263]
[1733789999021,0.3608,97496.0,97493.0,1.5]
[1733789999523,7.581e-05,97495.0,97493.0,1.5]
[1733790000116,7.581e-05,97495.0,97493.0,1.501]
[1733790001628,7.581e-05,97495.0,97493.0,1.5]
[1733790001928,0.00807581,97495.0,97493.0,1.501]
[1733790002115,0.00807581,97495.0,97493.0,0.001]
[1733790002317,0.01207581,97495.0,97493.0,0.001]
[1733790002515,0.01207581,97495.0,97493.0,0.052262]
[1733790003223,0.02091527,97494.0,97493.0,0.052262]
[1733790003728,0.02091527,97494.0,97493.0,0.001]
[1733790003729,0.07217727,97494.0,97493.0,0.001]
[1733790003932,0.10941527,97494.0,97484.0,0.051267]
[1733790004117,0.3608,97485.0,97484.0,0.051267]
[1733790004623,0.3608,97485.0,97477.0,1.5]
[1733790004624,0.3608,97485.0,97477.0,1.50056]
[1733790004818,0.051273,97473.0,97461.0,0.447339]
[1733790005020,0.3608,97464.0,97462.0,0.05448475]
[1733790005221,0.3608,97464.0,97463.0,1.5]
[1733790006730,0.3608,97464.0,97463.0,1.503]
[1733790007030,0.48310908,97464.0,97463.0,1.503]
[1733790007323,0.3608,97464.0,97463.0,1.503]
[1733790008226,0.3608,97464.0,97463.0,1.505]
[1733790008617,0.36014793,97464.0,97463.0,1.5]
[1733790008813,0.36314793,97464.0,97463.0,1.5]
[1733790009021,0.36414793,97464.0,97463.0,1.5]
[1733790009215,0.41542493,97464.0,97463.0,1.5]
[1733790010029,0.051287,97446.0,97436.0,0.051292]
[1733790010225,0.3608,97440.0,97437.0,0.00320749]
[1733790010418,0.3608,97440.0,97439.0,1.5]
[1733790010619,0.3608,97440.0,97439.0,1.551291]
[1733790011329,0.3608,97440.0,97439.0,1.5]
[1733790011526,0.41209,97440.0,97439.0,1.5]
[1733790011824,0.41219396,97440.0,97439.0,1.5]
[1733790012028,0.36090396,97440.0,97439.0,1.502]
[1733790012220,0.36090396,97440.0,97439.0,0.002]
[1733790012625,0.36090396,97440.0,97439.0,0.004]
[1733790012626,0.48331189,97440.0,97439.0,0.004]
[1733790012822,0.36090396,97440.0,97439.0,0.004]
[1733790013022,0.36090396,97440.0,97439.0,0.002]
[1733790013224,0.48327952,97440.0,97439.0,0.003]
[1733790013619,0.36090396,97440.0,97439.0,0.003]
[1733790013820,0.48326711,97440.0,97439.0,0.003]
[1733790014031,0.36090396,97440.0,97439.0,1.503]
[1733790014538,0.48324273,97440.0,97439.0,1.503]
[1733790015232,0.36090396,97440.0,97439.0,1.503]
[1733790015822,0.36090396,97440.0,97439.0,1.554291]
[1733790016026,0.00010396,97440.0,97439.0,1.554291]
[1733790016624,9.6e-07,97440.0,97439.0,1.55749846]
[1733790016826,9.6e-07,97440.0,97439.0,1.87395445]
[1733790017024,9.6e-07,97440.0,97439.0,1.57395445]
[1733790017229,9.6e-07,97440.0,97439.0,1.88036855]
[1733790017425,0.12233877,97483.0,97465.0,0.051277]
[1733790017630,0.12233877,97485.0,97465.0,0.412077]
[1733790017826,0.3608,97488.0,97480.0,0.051269]
[1733790018031,0.3608,97488.0,97487.0,1.5]
[1733790018224,0.38089188,97488.0,97487.0,1.5]
[1733790018430,0.36091627,97488.0,97487.0,1.5]
[1733790019830,0.00611627,97488.0,97487.0,1.501]
[1733790020137,0.36691627,97488.0,97487.0,1.501]
[1733790020557,0.00911627,97488.0,97487.0,1.501]
[1733790020740,0.00911627,97488.0,97487.0,1.504206]
[1733790021230,0.00011627,97488.0,97487.0,1.504206]
[1733790021436,0.00911627,97488.0,97487.0,1.504206]
[1733790022035,0.36991627,97488.0,97487.0,1.501]
[1733790023342,0.73071627,97488.0,97487.0,0.001]
[1733790024744,0.36991627,97488.0,97487.0,0.001]
[1733790024941,0.00911627,97488.0,97487.0,0.001]
[1733790025138,0.00911627,97488.0,97487.0,1.501]
[1733790025843,0.00911627,97488.0,97487.0,1.552265]
[1733790026239,0.00911627,97488.0,97487.0,1.501]